bitfinex/quotes_ETHUSD_20250520
["timestamp","ask_amount","ask_price","bid_price","bid_amount"]
[1747759380388,4.02747631,2483.0,2481.9,6.3829]
[1747759380389,4.0289183,2482.1,2481.9,6.3829]
[1747759380537,4.0289183,2482.1,2482.0,24.719726]
[1747759380981,4.0289183,2482.1,2482.0,32.719726]
[1747759381535,4.0289183,2482.1,2482.0,27.089726]
[1747759381741,4.0287782,2482.2,2482.1,8.0]
[1747759382039,4.0287782,2482.2,2482.1,36.721726]
[1747759382990,4.0287782,2482.2,2482.1,32.664173]
[1747759383994,4.0287782,2482.2,2482.1,46.450173]
[1747759384290,4.0287782,2482.2,2482.1,48.87837615]
[1747759385158,4.02868423,2482.2,2482.1,31.90176815]
[1747759385371,4.85468423,2482.2,2482.1,39.178]
[1747759385570,4.85468423,2482.2,2482.1,25.14]
[1747759386198,4.79978423,2482.2,2482.1,25.14]
[1747759386908,4.79978423,2482.2,2482.1,17.392]
[1747759387069,4.79978423,2482.2,2482.1,25.14]
[1747759387268,5.68261883,2482.2,2482.1,25.14]
[1747759388293,4.79978423,2482.2,2482.1,25.14]
[1747759390599,6.98903266,2482.2,2482.1,17.392]
[1747759390785,7.53903266,2482.2,2482.1,25.14]
[1747759391797,5.34978423,2482.2,2482.1,25.14]
[1747759391997,6.70825513,2482.2,2482.1,25.14]
[1747759398892,6.70825513,2482.2,2482.1,25.142]
[1747759402026,10.94625513,2482.2,2482.1,25.142]
[1747759402323,6.70825513,2482.2,2482.1,25.142]
[1747759403602,17.12725513,2482.2,2482.1,17.392]
[1747759403928,4.03030791,2481.2,2481.1,17.395]
[1747759404088,17.58567091,2481.2,2481.1,7.75]
[1747759404711,13.37930791,2481.2,2481.1,7.75]
[1747759404931,4.82930791,2481.2,2481.1,7.75]
[1747759406225,5.71525414,2481.2,2481.1,7.75]
[1747759407986,4.82930791,2481.2,2481.1,7.75]
[1747759413330,5.37930791,2481.2,2481.1,7.75]
[1747759413797,7.57154876,2481.2,2481.1,7.75]
[1747759413995,4.82930791,2481.2,2481.1,7.75]
[1747759414831,4.03128275,2480.6,2480.5,0.7818]
[1747759415123,4.03128275,2480.6,2480.4,17.395]
[1747759415124,4.03144527,2480.5,2480.4,17.395]
[1747759415292,12.03144527,2480.5,2480.4,25.137]
[1747759415512,13.39194527,2480.5,2480.4,25.137]
[1747759418140,4.0319329,2480.2,2480.1,0.1]
[1747759418338,8.62454407,2480.2,2480.1,7.843]
[1747759418536,16.62454407,2480.2,2480.1,7.843]
[1747759418935,17.17454407,2480.2,2480.1,7.843]
[1747759420345,19.59354407,2480.2,2480.1,0.1]
[1747759420543,23.83154407,2480.2,2480.1,0.1]
[1747759421112,26.02378492,2480.2,2480.1,0.1]
[1747759421313,23.83154407,2480.2,2480.1,0.1]
[1747759421715,21.6161689,2480.2,2480.1,0.1]
[1747759422429,19.1971689,2480.2,2480.1,0.1]
[1747759422625,19.1971689,2480.2,2479.1,0.1]
[1747759422626,4.03355921,2479.2,2479.1,0.1]
[1747759422826,13.35545921,2479.2,2479.1,7.843]
[1747759423351,13.76247391,2479.2,2479.1,7.843]
[1747759423927,13.76247391,2479.2,2479.1,0.1]
[1747759424252,15.96355089,2479.2,2479.1,0.1]
[1747759424439,15.96355089,2479.2,2479.1,7.845]
[1747759424755,15.96355089,2479.2,2479.1,0.1]
[1747759425050,15.96355089,2479.2,2479.1,7.845]
[1747759430557,15.96355089,2479.2,2479.1,0.1]
[1747759435759,26.16005089,2479.2,2479.1,0.1]
[1747759436080,26.16005089,2479.2,2478.3,17.408]
[1747759436081,4.5848612,2478.4,2478.3,17.408]
[1747759436248,16.79972688,2478.4,2478.3,25.157]
[1747759437082,16.79972688,2478.4,2478.3,17.408]
[1747759439357,16.79972688,2478.4,2478.3,25.158]
[1747759440051,17.59582688,2478.4,2478.3,7.75]
[1747759440289,19.92587706,2478.4,2478.3,7.75]
[1747759440498,4.03600113,2477.7,2477.6,18.2154]
[1747759440663,12.03600113,2477.7,2477.6,25.168]
[1747759441794,16.80086681,2477.7,2477.6,25.169]
[1747759442555,17.20347557,2477.7,2477.6,25.169]
[1747759442886,19.12319246,2477.7,2477.6,25.169]
[1747759443294,14.90832678,2477.7,2477.6,25.169]
[1747759444196,19.12319246,2477.7,2477.6,25.169]
[1747759447261,14.90832678,2477.7,2477.6,25.169]
[1747759447462,4.03600113,2477.7,2477.6,25.169]
[1747759447997,4.03600113,2477.7,2477.6,25.9283]
[1747759453203,4.03600113,2477.7,2477.6,43.307026]
[1747759453567,4.03600113,2477.7,2477.6,38.393273]
[1747759454480,4.03600113,2477.7,2477.6,38.77791137]
[1747759454680,4.03600113,2477.7,2477.6,42.65570251]
[1747759454882,4.03555853,2478.0,2477.7,0.7945]
[1747759455087,4.03583824,2477.8,2477.7,8.0]
[1747759455298,4.03583824,2477.8,2477.7,22.57700089]
[1747759455797,4.03576947,2477.9,2477.8,0.8225]
[1747759456102,4.03576947,2477.9,2477.8,12.152226]
[1747759456486,4.03576947,2477.9,2477.8,8.5655]
[1747759457807,4.03576947,2477.9,2477.8,0.8225]
[1747759457989,4.03600113,2477.7,2477.6,17.418]
[1747759458195,4.03600113,2477.7,2477.6,25.161]
[1747759462813,4.03600113,2477.7,2477.6,25.9626]
[1747759467718,4.03600113,2477.7,2477.6,18.2196]
[1747759467919,4.03600113,2477.7,2477.6,25.9626]
[1747759469302,4.03600113,2477.7,2477.6,18.2196]
[1747759469506,5.24676575,2477.7,2477.6,25.161]
[1747759475129,4.03600113,2477.7,2477.6,25.9697]
[1747759483540,4.03600113,2477.7,2477.6,37.299426]
[1747759484629,4.03600113,2477.7,2477.6,45.68555216]
[1747759485313,3.93147203,2477.9,2477.8,0.8101]
[1747759485514,3.93147203,2477.9,2477.8,15.23208888]
[1747759485699,3.93147203,2477.9,2477.8,16.02618888]
[1747759486419,3.93147203,2477.9,2477.8,24.02618888]
[1747759486621,3.93147203,2477.9,2477.8,24.41231504]
[1747759487541,4.03542502,2478.1,2477.8,24.41231504]
[1747759487716,4.03502831,2478.3,2478.0,8.0]
[1747759487915,4.03518682,2478.2,2478.1,16.5321]
[1747759488442,4.03518682,2478.2,2478.1,28.24795216]
[1747759490011,4.03518682,2478.2,2478.1,19.40343316]
[1747759490211,4.03518682,2478.2,2478.1,22.45760116]
[1747759490411,4.03518682,2478.2,2478.1,25.59130464]
[1747759491049,4.03452731,2478.7,2478.1,25.59130464]
[1747759491050,4.0346217,2478.6,2478.2,8.7734]
[1747759491250,4.03320233,2479.5,2478.4,8.7734]
[1747759491251,4.03323384,2479.4,2478.4,8.7734]
[1747759491544,0.7597,2479.5,2478.7,0.8175]
[1747759491545,4.03431916,2478.8,2478.7,0.8175]
[1747759491705,4.03431916,2478.8,2478.7,13.014347]
[1747759491912,4.03431916,2478.8,2478.7,6.4475]
[1747759492204,4.03431916,2478.8,2478.7,13.364]
[1747759495247,4.03431916,2478.8,2478.7,7.734]
[1747759495460,4.03431916,2478.8,2478.7,10.16220315]
[1747759496632,4.03431916,2478.8,2478.7,10.92950315]
[1747759496838,4.03431916,2478.8,2478.7,30.25922915]
[1747759497922,4.03394635,2479.0,2478.7,30.25922915]
[1747759498141,4.0340604,2478.9,2478.8,12.087126]
[1747759498458,4.0339693,2479.0,2478.9,8.0]
[1747759498761,4.0339693,2479.0,2478.9,19.329726]
[1747759499063,4.03383281,2479.1,2479.0,0.8007]
[1747759499360,4.03383281,2479.1,2479.0,1.5693594]
[1747759499756,4.03349517,2479.3,2479.0,1.5693594]
[1747759499963,4.03372191,2479.1,2479.0,1.5693594]
[1747759500362,4.03372191,2479.1,2479.0,12.8990854]
[1747759500579,4.03336739,2479.4,2479.1,0.8007]
[1747759500878,4.03209316,2480.2,2479.1,0.8007]
[1747759500879,4.0319329,2480.2,2479.4,0.8007]
[1747759501058,4.03274589,2479.7,2479.6,8.0]
[1747759501393,4.03274589,2479.7,2479.6,18.225525]
[1747759501523,4.0316078,2480.4,2479.6,18.225525]
[1747759501524,6.05616416,2480.7,2479.7,0.8007]
[1747759501725,4.0320994,2480.1,2479.9,0.8007]
[1747759502042,2.02492863,2480.7,2480.1,0.8007]
[1747759502043,4.0319329,2480.2,2480.1,0.8007]
[1747759502229,4.0319329,2480.2,2480.1,27.861426]
[1747759502430,4.0319329,2480.2,2480.1,28.6300854]
[1747759502628,6.0560572,2480.7,2480.2,8.0]
[1747759502629,2.02492863,2480.7,2480.2,8.0]
[1747759502860,4.0316078,2480.4,2480.3,0.7932]
[1747759503063,4.0316078,2480.4,2480.3,37.535926]
[1747759503265,4.03153398,2480.5,2480.4,8.0]
[1747759503472,4.03153398,2480.5,2480.4,11.216617]
[1747759503626,4.03153398,2480.5,2480.3,18.2062]
[1747759503627,4.0316078,2480.4,2480.3,26.2062]
[1747759503823,4.0316078,2480.4,2480.3,42.60382]
[1747759504061,4.03153682,2480.5,2480.4,11.329726]
[1747759504264,4.03153682,2480.5,2480.4,20.127826]
[1747759505368,4.03153682,2480.5,2480.4,15.722]
[1747759505575,4.03153682,2480.5,2480.4,33.097726]
[1747759506932,4.13081262,2480.9,2480.5,8.7834]
[1747759507129,4.13083157,2480.9,2480.7,8.7834]
[1747759507342,0.1,2480.9,2480.8,20.113126]
[1747759507638,4.13079527,2480.9,2480.8,20.113126]
[1747759509950,0.1,2480.9,2480.8,20.663126]
[1747759510275,4.13079527,2480.9,2480.8,22.7294386]
[1747759511979,0.1,2480.9,2480.8,22.7294386]
[1747759512173,0.1,2480.9,2480.8,25.55110902]
[1747759512475,0.1,2480.9,2480.8,11.3997126]
[1747759512638,0.1,2480.9,2480.8,9.3334]
[1747759513352,0.1,2480.9,2480.8,34.425126]
[1747759513549,4.13079527,2480.9,2480.8,25.743126]
[1747759513748,4.13079527,2480.9,2480.8,36.064177]
[1747759513994,0.1,2480.9,2480.8,36.614177]
[1747759514150,0.1,2480.9,2480.8,40.51653988]
[1747759514746,4.13079527,2480.9,2480.8,40.51653988]
[1747759515079,0.1,2480.9,2480.8,40.51653988]
[1747759515278,0.1,2480.9,2480.8,43.3382103]
[1747759515979,0.1,2480.9,2480.8,40.51653988]
[1747759517407,0.1,2480.9,2480.8,43.3382103]
[1747759518405,0.1,2480.9,2480.8,57.8382103]
[1747759518970,0.1,2480.9,2480.8,58.17470764]
[1747759519409,0.1,2480.9,2480.8,68.45470764]
[1747759519577,0.1,2481.9,2481.5,8.55]
[1747759519781,4.12925482,2481.9,2481.8,0.7576]
[1747759519990,4.12925482,2481.9,2481.8,20.087326]
[1747759520397,4.12925482,2481.9,2481.8,13.612455]
[1747759520711,4.12925482,2481.9,2481.8,27.368455]
[1747759521111,4.12925482,2481.9,2481.8,26.610855]
[1747759521407,4.12925482,2481.9,2481.8,25.450369]
[1747759521610,4.12925482,2481.9,2481.8,25.85853554]
[1747759522615,4.12925482,2481.9,2481.8,11.694369]
[1747759522771,4.02949591,2481.7,2481.6,17.397]
[1747759522969,4.02949591,2481.7,2481.6,25.112]
[1747759524185,4.02949591,2481.7,2481.6,36.7901]
[1747759524391,4.02949591,2481.7,2481.6,42.978913]
[1747759524776,4.02949591,2481.7,2481.6,25.112]
[1747759525010,4.02949591,2481.7,2481.6,39.151]
[1747759525212,4.02949591,2481.7,2481.6,25.397]
[1747759525417,4.02949591,2481.7,2481.6,33.112]
[1747759526884,4.02949591,2481.7,2481.6,39.103]
[1747759527522,4.02949591,2481.7,2481.6,33.112]
[1747759527823,4.02949591,2481.7,2481.6,39.106]
[1747759527978,4.02949591,2481.7,2481.6,43.00836288]
[1747759528398,4.02949591,2481.7,2481.6,48.63836288]
[1747759528592,4.02949591,2481.7,2481.6,42.64436288]
[1747759528807,4.02949591,2481.7,2481.6,31.027]
[1747759529113,4.02949591,2481.7,2481.6,25.397]
[1747759529277,4.82739591,2481.7,2481.6,25.112]
[1747759529711,4.02949591,2481.7,2481.6,29.517321]
[1747759530518,4.02949591,2481.7,2481.6,25.112]
[1747759531017,4.80999591,2481.7,2481.6,25.112]
[1747759532553,0.7805,2481.3,2481.0,0.47784354]
[1747759532703,9.02588904,2481.1,2481.0,0.47784354]
[1747759532898,9.70305512,2481.1,2481.0,0.47784354]
[1747759533105,21.12417489,2481.1,2481.0,0.47784354]
[1747759533337,24.04263772,2481.1,2481.0,0.47784354]
[1747759533529,20.49435187,2481.1,2481.0,0.47784354]
[1747759533812,4.03112024,2480.7,2480.6,7.715]
[1747759534004,4.84362024,2480.7,2480.6,7.715]
[1747759535142,4.03209548,2480.1,2480.0,17.393]
[1747759535317,4.03209548,2480.1,2480.0,26.8753]
[1747759536104,4.03209548,2480.1,2480.0,25.136]
[1747759542973,4.79739548,2480.1,2480.0,25.138]
[1747759543876,4.79739548,2480.1,2480.0,17.393]
[1747759543877,12.79739548,2480.1,2480.0,17.393]
[1747759544068,17.01231417,2480.1,2480.0,25.138]
[1747759546376,4.79739548,2480.1,2480.0,25.138]
[1747759547192,4.03209548,2480.1,2480.0,25.138]
[1747759549390,4.03209548,2480.1,2480.0,27.6518]
[1747759550278,4.03209548,2480.1,2480.0,25.138]
[1747759554697,4.03209548,2480.1,2480.0,17.393]
[1747759554900,4.03209548,2480.1,2480.0,25.139]
[1747759561805,4.83639548,2480.1,2480.0,25.139]
[1747759562885,12.83639548,2480.1,2480.0,25.139]
[1747759563128,15.49472317,2480.1,2480.0,17.393]
[1747759563283,15.49472317,2480.1,2480.0,25.139]
[1747759563666,14.94472317,2480.1,2480.0,25.139]
[1747759564272,12.83639548,2480.1,2480.0,25.139]
[1747759564504,4.83639548,2480.1,2480.0,25.139]
[1747759564706,4.03209548,2480.1,2480.0,25.139]
[1747759564915,4.03209548,2480.1,2480.0,31.9919]
[1747759565981,4.03209548,2480.1,2480.0,34.583519]
[1747759566304,4.03209548,2480.1,2480.0,38.0418709]
[1747759567106,19.00721323,2482.4,2480.0,38.0418709]
[1747759567301,4.03047035,2481.1,2480.1,0.8113]
[1747759567503,4.0319329,2480.2,2480.1,0.8113]
[1747759567754,4.0319329,2480.2,2480.1,12.141026]
[1747759567934,4.0319329,2480.2,2480.1,15.01324013]
[1747759568425,4.0319329,2480.2,2480.1,20.33761413]
[1747759569673,4.0319329,2480.2,2480.1,20.72239485]
[1747759569806,4.0319329,2480.2,2480.1,17.83829485]
[1747759570408,4.0319329,2480.2,2480.1,17.45351413]
[1747759570653,4.0319329,2480.2,2480.1,23.37083213]
[1747759570946,4.0319329,2480.2,2480.1,17.45351413]
[1747759571110,4.0319329,2480.2,2480.1,20.88751413]
[1747759571303,4.0319329,2480.2,2480.1,3.68351413]
[1747759571506,4.0319329,2480.2,2480.1,27.49151413]
[1747759572952,4.0319329,2480.2,2480.1,26.2114254]
[1747759573351,4.0319329,2480.2,2480.1,32.2914254]
[1747759573720,4.0319329,2480.2,2480.1,23.9180974]
[1747759573922,4.0319329,2480.2,2480.1,20.23358327]
[1747759574557,4.0319329,2480.2,2480.1,19.849]
[1747759575755,4.0319329,2480.2,2480.1,20.6538]
[1747759576052,4.0319329,2480.2,2480.1,31.983526]
[1747759576236,4.0319329,2480.2,2480.1,26.620541]
[1747759576441,4.0319329,2480.2,2480.1,14.50145988]
[1747759576630,4.0319329,2480.2,2480.1,20.54445988]
[1747759576829,4.0319329,2480.2,2480.1,20.53295988]
[1747759577220,4.0319329,2480.2,2480.1,20.91758866]
[1747759577425,4.03095775,2480.8,2480.1,20.91758866]
[1747759577659,4.03177035,2480.3,2480.2,2.46851312]
[1747759577858,4.03177035,2480.3,2480.2,18.27574915]
[1747759578171,4.03177035,2480.3,2480.2,8.89283193]
[1747759578460,4.03177035,2480.3,2480.2,22.66183193]
[1747759578626,4.03177035,2480.3,2480.2,25.63902293]
[1747759578827,4.03177035,2480.3,2480.2,22.66183193]
[1747759579126,4.03177035,2480.3,2480.2,20.23362878]
[1747759579567,4.03177035,2480.3,2480.2,19.849]
[1747759580167,4.03177035,2480.3,2480.2,21.962538]
[1747759580734,4.03177035,2480.3,2480.2,19.848]
[1747759581974,4.03177035,2480.3,2480.2,31.177726]
[1747759582276,4.03177035,2480.3,2480.2,35.87698888]
[1747759583959,4.03177035,2480.3,2480.2,36.26169542]
[1747759586566,4.03177035,2480.3,2480.2,24.93196942]
[1747759586766,4.03177035,2480.3,2480.2,36.26169542]
[1747759587349,4.03177035,2480.3,2480.2,36.66094774]
[1747759588566,4.03177035,2480.3,2480.2,28.00613474]
[1747759588763,4.03177035,2480.3,2480.2,21.96413474]
[1747759588983,4.03177035,2480.3,2480.2,20.76798242]
[1747759589288,4.03177035,2480.3,2480.2,14.19070654]
[1747759589492,4.03177035,2480.3,2480.2,13.806]
[1747759590409,4.82509548,2480.1,2480.0,17.393]
[1747759590694,12.82509548,2480.1,2480.0,25.119]
[1747759590896,16.13482916,2480.1,2480.0,25.119]
[1747759591062,8.68482916,2480.1,2480.0,25.119]
[1747759591263,16.68482916,2480.1,2480.0,25.119]
[1747759591471,16.68482916,2480.1,2480.0,7.726]
[1747759595428,4.78773384,2479.4,2479.3,17.404]
[1747759595726,4.78773384,2479.4,2479.3,25.132]
[1747759595727,8.99623705,2479.4,2479.3,25.132]
[1747759596723,9.54623705,2479.4,2479.3,25.132]
[1747759597038,9.54623705,2479.4,2479.3,25.121]
[1747759597409,4.78773384,2479.4,2479.3,25.121]
[1747759598443,6.09066761,2479.4,2479.3,25.121]
[1747759599341,4.78773384,2479.4,2479.3,25.121]
[1747759601039,4.03323384,2479.4,2479.3,25.121]
[1747759604973,4.03323384,2479.4,2479.3,33.121]
[1747759607872,4.03323384,2479.4,2479.3,33.9037]
[1747759609781,4.03323384,2479.4,2479.3,39.9487]
[1747759610080,4.03323384,2479.4,2479.3,43.85106288]
[1747759610476,4.03323384,2479.4,2479.3,30.08906288]
[1747759610682,4.03323384,2479.4,2479.3,39.9497]
[1747759611380,4.03323384,2479.4,2479.3,33.9047]
[1747759614490,4.03323384,2479.4,2479.3,25.404]
[1747759614799,4.03323384,2479.4,2479.3,39.166]
[1747759614963,4.03323384,2479.4,2479.3,43.06836288]
[1747759615993,4.03323384,2479.4,2479.3,17.404]
[1747759616196,4.03323384,2479.4,2479.3,31.166]
[1747759616959,4.03323384,2479.4,2479.3,25.122]
[1747759617493,4.03323384,2479.4,2479.3,17.404]
[1747759617691,4.03323384,2479.4,2479.3,25.122]
[1747759619778,4.03323384,2479.4,2479.3,28.4593]
[1747759619997,4.03323384,2479.4,2479.3,36.4593]
[1747759621207,4.03225806,2480.0,2479.5,0.8041]
[1747759621503,4.03274589,2479.7,2479.6,8.0]
[1747759621671,4.03274589,2479.7,2479.6,23.25141]
[1747759621994,4.03274589,2479.7,2479.6,29.33141]
[1747759622197,4.03274589,2479.7,2479.6,40.661136]
[1747759622396,4.03249037,2479.9,2479.7,0.8041]
[1747759622718,4.03249037,2479.9,2479.8,8.0]
[1747759622879,4.03249037,2479.9,2479.8,21.64968203]
[1747759623985,4.03227914,2480.0,2479.8,21.64968203]
[1747759623986,4.03234832,2480.0,2479.9,0.7623]
[1747759624164,0.8325,2480.7,2479.9,12.092026]
[1747759624496,4.03224171,2480.1,2479.9,0.7623]
[1747759624695,4.03224171,2480.1,2480.0,12.47648368]
[1747759625666,4.03224171,2480.1,2480.0,12.54663745]
[1747759625861,4.03224171,2480.1,2480.0,6.21893745]
[1747759626076,4.03224171,2480.1,2480.0,17.65624877]
[1747759626715,4.03224171,2480.1,2480.0,3.89524877]
[1747759626871,4.03224171,2480.1,2480.0,14.14632077]
[1747759627415,4.03224171,2480.1,2480.0,13.761]
[1747759628714,4.03224171,2480.1,2480.0,21.216866]
[1747759629025,4.03224171,2480.1,2480.0,22.1233326]
[1747759629775,4.03224171,2480.1,2480.0,20.3871866]
[1747759629990,4.03224171,2480.1,2480.0,17.4655]
[1747759630397,4.03224171,2480.1,2480.0,13.761]
[1747759630598,4.03224171,2480.1,2480.0,17.017746]
[1747759630919,4.03224171,2480.1,2480.0,13.761]
[1747759631094,4.03224171,2480.1,2480.0,15.717]
[1747759631281,4.03224171,2480.1,2480.0,7.717]
[1747759633813,4.03225806,2480.0,2479.9,14.08]
[1747759634032,4.03225806,2480.0,2479.9,15.715]
[1747759634236,5.31918219,2480.0,2479.9,7.715]
[1747759634384,4.03225806,2480.0,2479.9,7.715]
[1747759635291,4.86131108,2480.4,2479.5,0.7553]
[1747759635292,4.03177035,2480.3,2479.5,0.7553]
[1747759635533,4.03274589,2479.7,2479.6,21.758]
[1747759635846,4.03274589,2479.7,2479.6,29.759445]
[1747759636944,4.03250041,2479.9,2479.7,8.7637]
[1747759637149,4.03225806,2480.0,2479.9,8.0]
[1747759637353,4.03219285,2480.1,2479.9,19.329726]
[1747759637553,0.8126,2480.8,2480.0,20.093426]
[1747759637756,4.03166752,2480.4,2480.2,0.7637]
[1747759637934,4.03166752,2480.4,2480.3,25.405]
[1747759638132,4.03166752,2480.4,2480.3,27.84475894]
[1747759638350,0.8126,2481.1,2480.4,8.0]
[1747759638645,4.03144527,2480.5,2480.4,8.7691]
[1747759639320,4.03144527,2480.5,2480.4,21.757]
[1747759642245,4.03144527,2480.5,2480.4,27.837]
[1747759642446,4.03144527,2480.5,2480.4,31.72780709]
[1747759647371,0.8219,2481.5,2480.5,0.7568]
[1747759647574,0.8219,2481.5,2480.4,43.05753309]
[1747759647575,0.8219,2481.5,2480.8,0.7568]
[1747759647758,4.03047035,2481.1,2481.0,8.0]
[1747759647961,4.03047035,2481.1,2481.0,14.08]
[1747759648267,4.03047035,2481.1,2481.0,27.664706]
[1747759649876,4.03047035,2481.1,2481.0,21.584706]
[1747759650171,4.03079527,2480.9,2480.8,0.7568]
[1747759650578,4.03079527,2480.9,2480.8,21.572636]
[1747759651172,4.03079527,2480.9,2480.8,27.613636]
[1747759651840,4.03079527,2480.9,2480.8,27.99819354]
[1747759652041,4.03079527,2480.9,2480.8,31.40601289]
[1747759652887,4.03079527,2480.9,2480.8,16.89621289]
[1747759653075,4.03079527,2480.9,2480.8,0.38455754]
[1747759653282,4.83179527,2480.9,2480.8,0.38455754]
[1747759653583,4.83179527,2480.9,2480.8,7.712]
[1747759654089,4.83179527,2480.9,2480.3,23.446]
[1747759654090,4.0316078,2480.4,2480.3,23.446]
[1747759654298,4.0316078,2480.4,2480.3,31.158]
[1747759654992,4.0316078,2480.4,2480.3,39.158]
[1747759655190,4.0316078,2480.4,2480.3,43.16525705]
[1747759655892,4.0316078,2480.4,2480.3,54.49498305]
[1747759656597,4.0316078,2480.4,2480.3,54.87966619]
[1747759658571,0.7664,2481.0,2480.3,54.87966619]
[1747759658572,4.03144485,2480.6,2480.4,8.0]
[1747759658768,4.03144485,2480.6,2480.5,22.43373498]
[1747759659399,4.03144485,2480.6,2480.5,19.57732598]
[1747759660585,4.03144485,2480.6,2480.5,19.96200912]
[1747759662930,4.03144485,2480.6,2480.5,11.48869212]
[1747759663228,4.03144485,2480.6,2480.5,22.50960012]
[1747759663393,4.03144485,2480.6,2480.5,28.21468314]
[1747759663590,4.03144485,2480.6,2480.5,19.04488314]
[1747759663791,4.03144485,2480.6,2480.5,28.21468314]
[1747759664518,4.03144485,2480.6,2480.5,14.46468314]
[1747759664694,4.03144485,2480.6,2480.5,27.83]
[1747759664896,4.03144485,2480.6,2480.5,15.709]
[1747759665214,4.03144485,2480.6,2480.3,17.405]
[1747759665215,4.0316078,2480.4,2480.3,17.405]
[1747759665382,4.0316078,2480.4,2480.3,25.114]
[1747759665588,4.8515078,2480.4,2480.3,25.114]
[1747759665807,6.23177674,2480.4,2480.3,25.114]
[1747759666919,4.8515078,2480.4,2480.3,25.114]
[1747759671263,4.8515078,2480.4,2480.3,17.405]
[1747759671554,4.8515078,2480.4,2480.3,25.115]
[1747759680873,4.0316078,2480.4,2480.3,25.115]
[1747759683879,4.8411078,2480.4,2480.3,31.158]
[1747759684078,6.13151141,2480.4,2480.3,17.405]
[1747759684382,6.13151141,2480.4,2480.3,25.116]
[1747759684970,4.0316078,2480.4,2480.3,17.405]
[1747759685181,4.0316078,2480.4,2480.3,25.116]
[1747759687181,4.0316078,2480.4,2480.3,17.405]
[1747759687344,4.7825078,2480.4,2480.3,25.116]
[1747759687547,4.7825078,2480.4,2480.3,17.405]
[1747759687860,6.06705141,2480.4,2480.3,25.112]
[1747759688393,4.7825078,2480.4,2480.3,25.112]
[1747759688568,4.0316078,2480.4,2480.3,25.112]
[1747759691886,4.8177078,2480.4,2480.3,17.405]
[1747759692084,4.8177078,2480.4,2480.3,25.112]
[1747759692085,9.02621101,2480.4,2480.3,25.112]
[1747759692550,17.02621101,2480.4,2480.3,25.112]
[1747759692759,19.53512494,2480.4,2480.3,25.112]
[1747759693959,20.08512494,2480.4,2480.3,25.112]
[1747759694482,20.08512494,2480.4,2479.1,1.36244354]
[1747759694483,4.79174589,2479.7,2479.6,17.405]
[1747759694653,4.79174589,2479.7,2479.6,25.113]
[1747759694848,4.03274589,2479.7,2479.6,25.113]
[1747759695448,4.03274589,2479.7,2479.6,27.70276]
[1747759697352,4.03274589,2479.7,2479.6,25.113]
[1747759700692,4.03274589,2479.7,2479.6,37.235426]
[1747759701292,4.03260503,2479.8,2479.6,37.235426]
[1747759701293,4.03258327,2479.8,2479.7,8.0]
[1747759701464,4.03258327,2479.8,2479.7,19.329726]
[1747759701871,4.03258327,2479.8,2479.7,23.45860088]
[1747759703203,4.03258327,2479.8,2479.7,23.84428698]
[1747759703400,4.03258327,2479.8,2479.7,14.74977798]
[1747759703601,4.03258327,2479.8,2479.7,14.9132861]
[1747759703777,4.03258327,2479.8,2479.7,14.1366861]
[1747759704833,4.03258327,2479.8,2479.7,14.5637]
[1747759706113,4.03258327,2479.8,2479.7,25.893426]
[1747759706732,4.03258327,2479.8,2479.7,12.142426]
[1747759706896,4.03274589,2479.7,2479.6,17.405]
[1747759707081,4.03274589,2479.7,2479.6,25.113]
[1747759710584,4.03274589,2479.7,2479.6,17.405]
[1747759710791,4.03274589,2479.7,2479.6,25.113]
[1747759713023,12.03274589,2479.7,2479.6,25.113]
[1747759715733,4.03274589,2479.7,2479.6,28.9957]
[1747759716096,4.03274589,2479.7,2479.6,40.325426]
[1747759716509,4.03274589,2479.7,2479.6,37.338748]
[1747759716712,4.03274589,2479.7,2479.6,36.100848]
[1747759717030,4.03274589,2479.7,2479.6,31.453444]
[1747759717198,4.03274589,2479.7,2479.6,18.172]
[1747759717393,4.03274589,2479.7,2479.6,31.158]
[1747759717394,12.03274589,2479.7,2479.6,31.158]
[1747759720148,4.03274589,2479.7,2479.6,31.158]
[1747759722354,4.03274589,2479.7,2479.6,31.5437703]
[1747759724642,4.03274589,2479.7,2479.6,32.3031703]
[1747759725305,4.03274589,2479.7,2479.6,31.5437703]
[1747759726023,4.03274589,2479.7,2479.6,35.38323733]
[1747759727855,4.03268033,2479.8,2479.7,0.8018]
[1747759728004,4.03268033,2479.8,2479.7,12.131526]
[1747759728509,4.03268033,2479.8,2479.7,0.8018]
[1747759729022,4.03268033,2479.8,2479.7,1.1875703]
[1747759729220,4.03268033,2479.8,2479.7,12.6287693]
[1747759730252,4.03268033,2479.8,2479.7,9.7586693]
[1747759730454,4.03268033,2479.8,2479.7,13.2057693]
[1747759733654,4.03268033,2479.8,2479.7,6.4657703]
[1747759733858,4.03268033,2479.8,2479.7,20.2127703]
[1747759734274,4.03268033,2479.8,2479.7,22.3007993]
[1747759735854,4.03268033,2479.8,2479.7,31.5747703]
[1747759736027,4.03268033,2479.8,2479.7,37.6177703]
[1747759737648,4.03268033,2479.8,2479.7,31.5747703]
[1747759737856,4.03268033,2479.8,2479.7,37.6177703]
[1747759739262,4.03268033,2479.8,2479.7,31.5747703]
[1747759739462,4.03268033,2479.8,2479.7,37.6177703]
[1747759740168,4.03268033,2479.8,2479.7,23.8707703]
[1747759740467,4.03268033,2479.8,2479.7,37.6177703]
[1747759740665,13.61769798,2479.8,2479.7,31.5747703]
[1747759741462,13.61769798,2479.8,2479.7,25.4947703]
[1747759741661,15.81082574,2479.8,2479.7,25.4947703]
[1747759742185,15.81082574,2479.8,2479.7,17.7907703]
[1747759742340,13.36364589,2479.7,2479.6,7.704]
[1747759742670,13.36364589,2479.7,2479.0,17.405]
[1747759742671,12.81445921,2479.2,2479.0,17.405]
[1747759742896,12.81445921,2479.2,2479.1,7.804]
[1747759743336,12.03355921,2479.2,2479.1,7.804]
[1747759744331,15.02988697,2479.2,2479.1,7.804]
[1747759744531,16.93621882,2479.2,2479.1,7.805]
[1747759745370,14.74309106,2479.2,2479.1,7.805]
[1747759748350,12.03355921,2479.2,2479.1,7.805]
[1747759748537,4.03355921,2479.2,2479.1,7.805]